fUST/lending_fUST_20250910
["ID","MTS","AMOUNT","RATE_DAILY","PERIOD"]
[384652788,1757502105909,-480.0,0.00013698,2]
[384652789,1757502105939,-480.0,0.00013698,2]
[384652790,1757502105967,-480.0,0.00013698,2]
[384652791,1757502106001,-497.1,0.00013698,2]
[384652792,1757502106221,-541.78,0.00013698,2]
[384652793,1757502106251,-480.0,0.00013698,2]
[384652794,1757502106281,-605.93,0.00013698,2]
[384652795,1757502106312,-686.34,0.00013698,2]
[384652796,1757502106340,-480.0,0.00013698,2]
[384652797,1757502106369,-480.0,0.00013698,2]
[384652798,1757502106400,-480.0,0.00013698,2]
[384652799,1757502106429,-480.0,0.00013698,2]
[384652800,1757502106458,-480.0,0.00013698,2]
[384652801,1757502106486,-91.91,0.00013698,2]
[384652802,1757502106652,-388.09,0.00013698,2]
[384652803,1757502106680,-480.0,0.00013698,2]
[384652804,1757502106711,-1234.8,0.00013698,2]
[384652805,1757502106740,-579.15,0.00013698,2]
[384652806,1757502106768,-480.0,0.00013698,2]
[384652807,1757502106797,-480.0,0.00013698,2]
[384652808,1757502106828,-484.57458083,0.00013698,2]
[384652809,1757502106859,-480.0,0.00013698,2]
[384652810,1757502106893,-306.78083834,0.00013698,2]
[384652811,1757502107063,-173.21916166,0.00013698,2]
[384652812,1757502107095,-480.0,0.00013698,2]
[384652813,1757502107125,-480.0,0.00013698,2]
[384652814,1757502107156,-480.0,0.00013698,2]
[384652815,1757502107185,-480.0,0.00013698,2]
[384652816,1757502107217,-480.0,0.00013698,2]
[384652817,1757502107247,-570.45,0.00013698,2]
[384652818,1757502107279,-1106.21167668,0.00013698,2]
[384652819,1757502107560,-1500.24832332,0.00013698,2]
[384652820,1757502107590,-480.0,0.00013698,2]
[384652821,1757502107619,-285.15773474,0.00013698,2]
[384652822,1757502107647,-480.0,0.00013698,2]
[384652823,1757502107676,-352.22122218,0.00013698,2]
[384652824,1757502107705,-481.04658353,0.00013698,2]
[384652825,1757502107735,-480.0,0.00013698,2]
[384652826,1757502107763,-480.0,0.00013698,2]
[384652827,1757502107792,-442.66227246,0.00013698,2]
[384652828,1757502107913,-37.33772754,0.00013698,2]
[384652829,1757502107943,-480.0,0.00013698,2]
[384652830,1757502107972,-480.0,0.00013698,2]
[384652831,1757502108001,-480.0,0.00013698,2]
[384652832,1757502108033,-480.0,0.00013698,2]
[384652833,1757502108063,-480.0,0.00013698,2]
[384652834,1757502108094,-480.0,0.00013698,2]
[384652835,1757502108125,-480.0,0.00013698,2]
[384652836,1757502108154,-486.50878473,0.00013698,2]
[384652837,1757502108182,-480.0,0.00013698,2]
[384652838,1757502108213,-613.81697546,0.00013698,2]
[384652839,1757502108377,-44.68302454,0.00013698,2]
[384652840,1757502108407,-480.0,0.00013698,2]
[384652841,1757502108437,-480.0,0.00013698,2]
[384652842,1757502108467,-480.0,0.00013698,2]
[384652843,1757502108497,-575.98,0.00013698,2]
[384652844,1757502108529,-480.0,0.00013698,2]
[384652845,1757502108568,-960.9,0.00013698,2]
[384652846,1757502108603,-480.0,0.00013698,2]
[384652847,1757502108636,-486.56359179,0.00013698,2]
[384652848,1757502108672,-480.0,0.00013698,2]
[384652849,1757502108886,-480.0,0.00013698,2]
[384652850,1757502108921,-480.0,0.00013698,2]
[384652851,1757502108955,-504.86977798,0.00013698,2]
[384652852,1757502112941,-480.0,0.00013698,2]
[384652853,1757502112969,-480.0,0.00013698,2]
[384652854,1757502112997,-480.0,0.00013698,2]
[384652855,1757502113028,-480.0,0.00013698,2]
[384652856,1757502113061,-484.5704198,0.00013698,2]
[384652857,1757502113091,-480.0,0.00013698,2]
[384652858,1757502113330,-9582.69538274,0.00013698,2]
[384652859,1757502113355,-10000.01,0.00013698,2]
[384652860,1757502113442,-90.33390755,0.00013698,2]
[384652861,1757502113471,-427.398985,0.00013699,2]
[384652862,1757502113500,-166.56991,0.00013872,2]
[384652863,1757502113528,-500.0,0.00013912,2]
[384652864,1757502113557,-500.0,0.00013969,2]
[384652865,1757502113585,-500.0,0.00013969,2]
[384652866,1757502113615,-500.0,0.00013969,2]
[384652867,1757502113646,-500.0,0.00013969,2]
[384652868,1757502113676,-500.0,0.00013969,2]
[384652869,1757502113706,-500.0,0.00013969,2]
[384652870,1757502113736,-214.81625003,0.00013969,2]
[384652871,1757502113765,-500.0,0.00013969,2]
[384652872,1757502113876,-500.0,0.00013969,2]
[384652873,1757502113907,-500.0,0.00013969,2]
[384652874,1757502113939,-500.0,0.00013969,2]
[384652875,1757502113967,-576.50458071,0.00013969,2]
[384652876,1757502113997,-500.0,0.00013969,2]
[384652877,1757502114030,-500.0,0.00013969,2]
[384652878,1757502114065,-500.0,0.00013969,2]
[384652879,1757502114098,-500.0,0.00013969,2]
[384652880,1757502114130,-300.0,0.00013971,2]
[384652881,1757502114161,-300.0,0.00013971,2]
[384652882,1757502114193,-300.0,0.00013971,2]
[384652883,1757502114307,-300.0,0.00013971,2]
[384652884,1757502114337,-300.0,0.00013971,2]
[384652885,1757502114466,-300.0,0.00013971,2]
[384652886,1757502114504,-300.0,0.00013971,2]
[384652887,1757502114535,-300.0,0.00013971,2]
[384652888,1757502114565,-300.0,0.00013971,2]
[384652889,1757502114596,-300.0,0.00013971,2]
[384652890,1757502114627,-300.0,0.00013971,2]
[384652891,1757502114658,-300.0,0.00013971,2]
[384652892,1757502114689,-300.0,0.00013971,2]
[384652893,1757502114722,-300.0,0.00013971,2]
[384652894,1757502114756,-300.0,0.00013971,2]
[384652895,1757502114786,-600.0,0.00013971,2]
[384652896,1757502114814,-480.0,0.00013972,2]
[384652897,1757502114844,-178.45303487,0.00013972,2]
[384652898,1757502114952,-480.0,0.00013972,2]
[384652899,1757502114982,-480.0,0.00013972,2]
[384652900,1757502115012,-483.10078319,0.00013972,2]
[384652901,1757502115047,-480.0,0.00013972,2]
[384652902,1757502115078,-480.0,0.00013972,2]
[384652903,1757502115110,-480.0,0.00013972,2]
[384652904,1757502115138,-480.0,0.00013972,2]
[384652905,1757502115166,-484.89244816,0.00013972,2]
[384652906,1757502115195,-480.0,0.00013972,2]
[384652907,1757502115225,-480.0,0.00013972,2]
[384652908,1757502115450,-480.0,0.00013972,2]
[384652909,1757502115479,-480.0,0.00013972,2]
[384652910,1757502115507,-198.1761812,0.00013972,2]
[384652911,1757502115536,-480.0,0.00013972,2]
[384652912,1757502115565,-478.99032299,0.00013972,2]
[384652913,1757502115593,-480.0,0.00013972,2]
[384652914,1757502115623,-622.00774785,0.00013972,2]
[384652915,1757502115651,-480.0,0.00013972,2]
[384652916,1757502115805,-2856.43,0.00013972,2]
[384652917,1757502115837,-480.0,0.00013972,2]
[384652918,1757502115867,-480.0,0.00013972,2]
[384652919,1757502115896,-480.0,0.00013972,2]
[384652920,1757502115925,-540.77,0.00013972,2]
[384652921,1757502116037,-480.0,0.00013972,2]
[384652922,1757502116067,-480.0,0.00013972,2]
[384652923,1757502116099,-427.08,0.00013972,2]
[384652924,1757502116129,-480.0,0.00013972,2]
[384652925,1757502116158,-480.0,0.00013972,2]
[384652926,1757502116186,-480.0,0.00013972,2]
[384652927,1757502116214,-480.0,0.00013972,2]
[384652928,1757502116243,-480.0,0.00013972,2]
[384652929,1757502116273,-497.1,0.00013972,2]
[384652930,1757502116302,-541.78,0.00013972,2]
[384652931,1757502116409,-480.0,0.00013972,2]
[384652932,1757502116437,-605.93,0.00013972,2]
[384652933,1757502116466,-686.34,0.00013972,2]
[384652934,1757502116495,-480.0,0.00013972,2]
[384652935,1757502116524,-480.0,0.00013972,2]
[384652936,1757502116554,-480.0,0.00013972,2]
[384652937,1757502116582,-480.0,0.00013972,2]
[384652938,1757502116610,-579.15,0.00013972,2]
[384652939,1757502116640,-222.37,0.00013972,2]
[384652940,1757502116909,-1012.43,0.00013972,2]
[384652941,1757502116936,-480.0,0.00013972,2]
[384652942,1757502116964,-480.0,0.00013972,2]
[384652943,1757502116993,-564.27,0.00013972,2]
[384652944,1757502117023,-480.0,0.00013972,2]
[384652945,1757502117056,-570.45,0.00013972,2]
[384652946,1757502117090,-219.25,0.00013972,2]
[384652947,1757502117196,-2387.21,0.00013972,2]
[384652948,1757502117224,-480.0,0.00013972,2]
[384652949,1757502117253,-480.0,0.00013972,2]
[384652950,1757502117283,-480.0,0.00013972,2]
[384652951,1757502117311,-480.0,0.00013972,2]
[384652952,1757502117339,-480.0,0.00013972,2]
[384652953,1757502117475,-480.0,0.00013972,2]
[384652954,1757502117504,-480.0,0.00013972,2]
[384652955,1757502117532,-480.0,0.00013972,2]
[384652956,1757502117560,-484.52305927,0.00013972,2]
[384652957,1757502117588,-480.0,0.00013972,2]
[384652958,1757502117619,-658.5,0.00013972,2]
[384652959,1757502117648,-480.0,0.00013972,2]
[384652960,1757502117677,-536.91,0.00013972,2]
[384652961,1757502117705,-480.0,0.00013972,2]
[384652962,1757502117735,-304.16388146,0.00013972,2]
[384652963,1757502117879,-271.81611854,0.00013972,2]
[384652964,1757502117908,-480.0,0.00013972,2]
[384652965,1757502117939,-960.9,0.00013972,2]
[384652966,1757502117969,-480.0,0.00013972,2]
[384652967,1757502117998,-480.0,0.00013972,2]
[384652968,1757502118027,-480.0,0.00013972,2]
[384652969,1757502118062,-480.0,0.00013972,2]
[384652970,1757502118092,-480.0,0.00013972,2]
[384652971,1757502118123,-480.0,0.00013972,2]
[384652972,1757502118152,-334.57776292,0.00013972,2]
[384652973,1757502119694,-201.98987423,0.00013698,2]
[384652974,1757502119709,-278.01012577,0.00013698,2]
[384652975,1757502119718,-201.98987423,0.00013698,2]
[384652976,1757502119745,-280.44357208,0.00013698,2]
[384652977,1757502119766,-145.42223708,0.00013972,2]
[384652978,1757502119777,-232.63419084,0.00013972,2]
[384652979,1757502119793,-247.36580916,0.00013972,2]
[384652980,1757502119802,-232.63419084,0.00013972,2]
[384652981,1757502119816,-247.36580916,0.00013972,2]
[384652982,1757502119826,-289.54419084,0.00014246,2]
[384652983,1757502119840,-190.45580916,0.00014246,2]
[384652984,1757502119850,-289.54419084,0.00014246,2]
[384652985,1757502119863,-190.45580916,0.00014246,2]
[384652986,1757502119873,-274.91136944,0.00014246,2]
[384652987,1757502119882,-110.6128214,0.00014246,2]
[384652988,1757502119901,-271.81611854,0.00013698,2]
[384652989,1757502119914,-212.91646594,0.00013698,2]
[384652990,1757502119923,-267.08353406,0.00014246,2]
[384652991,1757502119938,-128.77364454,0.00014246,2]
[384652992,1757502119947,-480.0,0.00014246,2]
[384652993,1757502119956,-352.12635546,0.00014246,2]
[384652994,1757502119969,-480.0,0.00014246,2]
[384652995,1757502119983,-480.0,0.00014246,2]
[384652996,1757502119997,-480.0,0.00014246,2]
[384652997,1757502120011,-480.0,0.00014246,2]
[384652998,1757502120025,-480.0,0.00014246,2]
[384652999,1757502120039,-104.30364454,0.00014246,2]
[384653000,1757502120052,-375.69635546,0.00014246,2]
[384653001,1757502120067,-104.30364454,0.00014246,2]
[384653002,1757502120077,-239.59,0.00014246,2]
[384653003,1757502120087,-136.10635546,0.00014246,2]
[384653004,1757502123257,300.0,0.00014245,2]
[384653005,1757502125453,482.90221377,0.00013698,2]
[384653006,1757502126578,500.0,0.00013969,2]
[384653007,1757502130185,8717.10778623,0.00014104,2]
[384653008,1757502130212,10000.01,0.00014104,2]
[384653009,1757502130236,2596.52160604,0.00014104,2]
[384653010,1757502133193,493.47592823,0.00013698,2]
[384653011,1757502133242,497.61,0.00013698,2]
[384653012,1757502133490,497.61,0.00013972,2]
[384653013,1757502135643,489.66558419,0.00013698,2]
[384653014,1757502136669,480.0,0.00013698,2]
[384653015,1757502136907,480.0,0.00013972,2]
[384653016,1757502137609,480.0,0.00013698,2]
[384653017,1757502137920,480.0,0.00013972,2]
[384653018,1757502139262,1042.25188518,0.00014104,2]
[384653019,1757502139500,2186.0,0.00024,30]
[384653020,1757502141181,480.0,0.00013698,2]
[384653021,1757502141405,480.0,0.00013972,2]
[384653023,1757502174994,1000.0,0.00018595,20]
[384653024,1757502289139,182.43888483,0.00013287,2]
[384653025,1757502433121,-2400.0,0.00013424,2]
[384653026,1757502433142,-300.0,0.00013559,2]
[384653027,1757502433162,-1200.0,0.00013559,2]
[384653028,1757502433183,-300.0,0.0001356,2]
[384653029,1757502433204,-78.45946459,0.0001356,2]
[384653030,1757502549802,576.65,0.00012329,2]
[384653031,1757502560175,480.54,0.00012329,2]
[384653032,1757502570560,400.45,0.00012329,2]
[384653033,1757502580963,333.71,0.00012329,2]
[384653034,1757502591350,278.09,0.00012329,2]
[384653036,1757502601771,231.75,0.00012329,2]
[384653037,1757502612414,193.12,0.00012329,2]
[384653038,1757502622810,160.93,0.00012329,2]
[384653039,1757502623350,1721.54053541,0.0001329,2]
[384653089,1757502632496,-288.20787501,0.00013561,2]
[384653092,1757502632509,-312.21646986,0.00013561,2]
[384653094,1757502632519,-198.33156506,0.00013598,2]
[384653137,1757502633439,804.7,0.00012329,2]
[384653157,1757502638231,-715.197037,0.00013598,2]
[384653160,1757502638241,-300.0,0.00013696,2]
[384653162,1757502638251,-290.0,0.00013696,2]
[384653164,1757502638260,-300.0,0.00013696,2]
[384653166,1757502638270,-1200.0,0.00013696,2]
[384653168,1757502638279,-155.0,0.00013697,2]
[384653170,1757502638288,-500.0,0.00013697,2]
[384653172,1757502638298,-500.0,0.00013697,2]
[384653174,1757502638307,-500.0,0.00013697,2]
[384653176,1757502638318,-500.0,0.00013697,2]
[384653178,1757502638328,-500.0,0.00013697,2]
[384653180,1757502638337,-480.0,0.00013698,2]
[384653182,1757502638347,-480.0,0.00013698,2]
[384653184,1757502638356,-601.7623293,0.00013698,2]
[384653186,1757502638369,-480.0,0.00013698,2]
[384653188,1757502638378,-480.0,0.00013698,2]
[384653190,1757502638388,-480.0,0.00013698,2]
[384653192,1757502638397,-482.76121591,0.00013698,2]
[384653194,1757502638406,-480.0,0.00013698,2]
[384653196,1757502638415,-480.0,0.00013698,2]
[384653198,1757502638424,-480.0,0.00013698,2]
[384653200,1757502638434,-480.0,0.00013698,2]
[384653202,1757502638442,-482.82470362,0.00013698,2]
[384653204,1757502638452,-482.13757358,0.00013698,2]
[384653206,1757502638460,-484.03469247,0.00013698,2]
[384653208,1757502638470,-480.0,0.00013698,2]
[384653210,1757502638480,-480.0,0.00013698,2]
[384653212,1757502638489,-367.70601506,0.00013698,2]
[384653214,1757502638498,-482.59727693,0.00013698,2]
[384653216,1757502638507,-480.0,0.00013698,2]
[384653218,1757502638517,-480.0,0.00013698,2]
[384653220,1757502638527,-480.0,0.00013698,2]
[384653222,1757502638536,-482.39772361,0.00013698,2]
[384653224,1757502638545,-480.0,0.00013698,2]
[384653226,1757502638554,-480.0,0.00013698,2]
[384653228,1757502638563,-480.0,0.00013698,2]
[384653230,1757502638572,-482.79850881,0.00013698,2]
[384653231,1757502638580,-198.52131176,0.00013698,2]
[384653233,1757502638590,-480.0,0.00013698,2]
[384653235,1757502638599,-480.0,0.00013698,2]
[384653237,1757502638608,-450.59,0.00013698,2]
[384653238,1757502638618,-480.0,0.00013698,2]
[384653239,1757502638627,-480.0,0.00013698,2]
[384653240,1757502638636,-481.23899459,0.00013698,2]
[384653241,1757502638645,-480.0,0.00013698,2]
[384653242,1757502638655,-480.0,0.00013698,2]
[384653243,1757502638664,-481.756677,0.00013698,2]
[384653244,1757502638673,-480.0,0.00013698,2]
[384653245,1757502638682,-480.0,0.00013698,2]
[384653246,1757502638691,-289.86912465,0.00013698,2]
[384653247,1757502638701,-480.0,0.00013698,2]
[384653248,1757502638710,-480.0,0.00013698,2]
[384653249,1757502638719,-480.0,0.00013698,2]
[384653250,1757502638728,-480.0,0.00013698,2]
[384653251,1757502638737,-480.0,0.00013698,2]
[384653252,1757502638746,-534.54680004,0.00013698,2]
[384653253,1757502638756,-480.0,0.00013698,2]
[384653254,1757502638766,-469.24731808,0.00013698,2]
[384653255,1757502638775,-480.0,0.00013698,2]
[384653256,1757502638785,-485.35370771,0.00013698,2]
[384653257,1757502638794,-480.0,0.00013698,2]
[384653258,1757502638804,-382.00726471,0.00013698,2]
[384653259,1757502638813,-480.0,0.00013698,2]
[384653260,1757502638822,-480.0,0.00013698,2]
[384653261,1757502638831,-480.0,0.00013698,2]
[384653262,1757502638841,-480.0,0.00013698,2]
[384653263,1757502638958,-480.0,0.00013698,2]
[384653264,1757502638968,-480.0,0.00013698,2]
[384653265,1757502638977,-480.0,0.00013698,2]
[384653266,1757502638987,-418.43007453,0.00013698,2]
[384653267,1757502638996,-480.0,0.00013698,2]
[384653268,1757502639005,-484.16146087,0.00013698,2]
[384653269,1757502639015,-480.0,0.00013698,2]
[384653270,1757502639024,-480.0,0.00013698,2]
[384653271,1757502639033,-480.0,0.00013698,2]
[384653272,1757502639043,-480.0,0.00013698,2]
[384653273,1757502639052,-480.0,0.00013698,2]
[384653274,1757502639061,-480.0,0.00013698,2]
[384653275,1757502639071,-480.0,0.00013698,2]
[384653276,1757502639080,-206.72,0.00013698,2]
[384653277,1757502639090,-480.0,0.00013698,2]
[384653278,1757502639099,-480.0,0.00013698,2]
[384653279,1757502639108,-480.0,0.00013698,2]
[384653280,1757502639118,-483.54077908,0.00013698,2]
[384653281,1757502639127,-480.0,0.00013698,2]
[384653282,1757502639136,-217.06210863,0.00013698,2]
[384653283,1757502639146,-480.0,0.00013698,2]
[384653284,1757502639155,-480.0,0.00013698,2]
[384653285,1757502639164,-4185.49,0.00013698,2]
[384653286,1757502639174,-480.0,0.00013698,2]
[384653287,1757502639183,-480.0,0.00013698,2]
[384653288,1757502639192,-480.0,0.00013698,2]
[384653289,1757502639202,-480.0,0.00013698,2]
[384653290,1757502639212,-595.44,0.00013698,2]
[384653291,1757502639222,-480.0,0.00013698,2]
[384653292,1757502639231,-481.97211452,0.00013698,2]
[384653293,1757502639241,-368.75157916,0.00013698,2]
[384653294,1757502639250,-480.0,0.00013698,2]
[384653295,1757502639260,-483.93087493,0.00013698,2]
[384653296,1757502639270,-480.78626591,0.00013698,2]
[384653297,1757502639279,-480.0,0.00013698,2]
[384653298,1757502639289,-480.0,0.00013698,2]
[384653299,1757502639298,-481.3266697,0.00013698,2]
[384653300,1757502639309,-481.96351251,0.00013698,2]
[384653301,1757502639318,-480.0,0.00013698,2]
[384653302,1757502639328,-452.11383636,0.00013698,2]
[384653303,1757502639337,-514.7659471,0.00013698,2]
[384653304,1757502639346,-483.8774765,0.00013698,2]
[384653305,1757502639355,-351.58574773,0.00013698,2]
[384653306,1757502639369,-481.67621973,0.00013698,2]
[384653307,1757502639379,-480.0,0.00013698,2]
[384653308,1757502639388,-480.0,0.00013698,2]
[384653309,1757502639397,-480.0,0.00013698,2]
[384653310,1757502639408,-480.0,0.00013698,2]
[384653311,1757502639418,-174.53,0.00013698,2]
[384653312,1757502639427,-482.93340355,0.00013698,2]
[384653313,1757502639437,-484.17814405,0.00013698,2]
[384653314,1757502639446,-481.38659292,0.00013698,2]
[384653315,1757502639456,-489.54,0.00013698,2]
[384653316,1757502639466,-480.0,0.00013698,2]
[384653317,1757502639475,-484.14863715,0.00013698,2]
[384653318,1757502639484,-514.70032097,0.00013698,2]
[384653319,1757502639493,-480.9122331,0.00013698,2]
[384653320,1757502639503,-483.23552824,0.00013698,2]
[384653321,1757502639512,-480.0,0.00013698,2]
[384653322,1757502639521,-482.5736787,0.00013698,2]
[384653323,1757502639531,-482.38282175,0.00013698,2]
[384653324,1757502639540,-480.0,0.00013698,2]
[384653325,1757502639549,-480.0,0.00013698,2]
[384653326,1757502639559,-480.0,0.00013698,2]
[384653327,1757502639568,-278.9372913,0.00013698,2]
[384653328,1757502639592,-220.99761784,0.00013698,2]
[384653329,1757502639603,-480.0,0.00013698,2]
[384653330,1757502639612,-481.59803775,0.00013698,2]
[384653331,1757502639621,-480.0,0.00013698,2]
[384653332,1757502639630,-480.0,0.00013698,2]
[384653333,1757502639640,-480.0,0.00013698,2]
[384653334,1757502639649,-480.0,0.00013698,2]
[384653335,1757502639658,-481.06746089,0.00013698,2]
[384653336,1757502639667,-482.08709149,0.00013698,2]
[384653337,1757502639677,-1131.9,0.00013698,2]
[384653338,1757502639687,-480.0,0.00013698,2]
[384653339,1757502639697,-480.0,0.00013698,2]
[384653340,1757502639708,-480.0,0.00013698,2]
[384653341,1757502639718,-480.0,0.00013698,2]
[384653342,1757502639727,-525.67770296,0.00013698,2]
[384653343,1757502639739,-480.0,0.00013698,2]
[384653344,1757502639749,-480.0,0.00013698,2]
[384653345,1757502639759,-480.0,0.00013698,2]
[384653346,1757502639768,-486.84819314,0.00013698,2]
[384653347,1757502639777,-480.0,0.00013698,2]
[384653348,1757502639786,-480.0,0.00013698,2]
[384653349,1757502639795,-480.0,0.00013698,2]
[384653350,1757502639805,-480.0,0.00013698,2]
[384653351,1757502639814,-480.0,0.00013698,2]
[384653352,1757502639824,-522.92,0.00013698,2]
[384653353,1757502639833,-480.0,0.00013698,2]
[384653354,1757502639843,-480.0,0.00013698,2]
[384653355,1757502639854,-482.46448473,0.00013698,2]
[384653356,1757502639863,-480.0,0.00013698,2]
[384653357,1757502639872,-480.0,0.00013698,2]
[384653358,1757502639883,-488.13359453,0.00013698,2]
[384653359,1757502639892,-480.67679575,0.00013698,2]
[384653360,1757502639901,-480.0,0.00013698,2]
[384653361,1757502639911,-480.0,0.00013698,2]
[384653362,1757502639920,-246.50945821,0.00013698,2]
[384653363,1757502639929,-483.16099578,0.00013698,2]
[384653364,1757502639939,-480.0,0.00013698,2]
[384653365,1757502639948,-498.31768226,0.00013698,2]
[384653366,1757502639958,-2389.25,0.00013698,2]
[384653368,1757502639967,-480.0,0.00013698,2]
[384653370,1757502639976,-530.89,0.00013698,2]
[384653372,1757502639986,-480.0,0.00013698,2]
[384653373,1757502639995,-480.0,0.00013698,2]
[384653375,1757502640005,-480.0,0.00013698,2]
[384653377,1757502640015,-480.0,0.00013698,2]
[384653378,1757502640023,-480.0,0.00013698,2]
[384653379,1757502640033,-480.0,0.00013698,2]
[384653380,1757502640042,-480.0,0.00013698,2]
[384653381,1757502640051,-480.0,0.00013698,2]
[384653382,1757502640061,-480.0,0.00013698,2]
[384653383,1757502640070,-480.0,0.00013698,2]
[384653384,1757502640080,-480.0,0.00013698,2]
[384653385,1757502640089,-480.0,0.00013698,2]
[384653386,1757502640099,-480.0,0.00013698,2]
[384653387,1757502640108,-480.0,0.00013698,2]
[384653388,1757502640118,-480.0,0.00013698,2]
[384653389,1757502640127,-480.0,0.00013698,2]
[384653390,1757502640137,-480.0,0.00013698,2]
[384653391,1757502640146,-480.0,0.00013698,2]
[384653392,1757502640155,-480.0,0.00013698,2]
[384653393,1757502640165,-1000.0,0.00013698,2]
[384653394,1757502640174,-480.0,0.00013698,2]
[384653395,1757502640183,-480.0,0.00013698,2]
[384653396,1757502640192,-480.0,0.00013698,2]
[384653398,1757502640201,-317.22444052,0.00013698,2]
[384653399,1757502640211,-480.0,0.00013698,2]
[384653400,1757502640220,-233.30411105,0.00013698,2]
[384653401,1757502640229,-480.0,0.00013698,2]
[384653402,1757502640238,-480.0,0.00013698,2]
[384653403,1757502640248,-480.0,0.00013698,2]
[384653404,1757502640257,-603.62,0.00013698,2]
[384653405,1757502640267,-480.0,0.00013698,2]
[384653406,1757502640276,-480.0,0.00013698,2]
[384653407,1757502640285,-480.0,0.00013698,2]
[384653408,1757502640294,-481.17539776,0.00013698,2]
[384653409,1757502640303,-482.1010357,0.00013698,2]
[384653410,1757502640313,-480.0,0.00013698,2]
[384653411,1757502640322,-480.0,0.00013698,2]
[384653412,1757502640331,-485.95319667,0.00013698,2]
[384653413,1757502640341,-480.0,0.00013698,2]
[384653414,1757502640352,-556.34,0.00013698,2]
[384653415,1757502640362,-481.40179665,0.00013698,2]
[384653416,1757502640381,-328.78798777,0.00013698,2]
[384653417,1757502640391,-500.0,0.00013698,2]
[384653418,1757502640400,-500.0,0.00013698,2]
[384653419,1757502640409,-500.0,0.00013698,2]
[384653420,1757502640419,-500.0,0.00013698,2]
[384653421,1757502640429,-541.22699944,0.00013698,2]
[384653422,1757502640438,-480.0,0.00013698,2]
[384653423,1757502640447,-880.83,0.00013698,2]
[384653424,1757502640456,-483.07230343,0.00013698,2]
[384653425,1757502640466,-480.0,0.00013698,2]
[384653426,1757502640475,-480.0,0.00013698,2]
[384653427,1757502640485,-483.13414118,0.00013698,2]
[384653428,1757502640494,-480.0,0.00013698,2]
[384653429,1757502640503,-482.54867448,0.00013698,2]
[384653430,1757502640513,-480.0,0.00013698,2]
[384653431,1757502640522,-480.0,0.00013698,2]
[384653432,1757502640532,-483.15284305,0.00013698,2]
[384653433,1757502640541,-480.0,0.00013698,2]
[384653434,1757502640551,-480.0,0.00013698,2]
[384653435,1757502640560,-480.0,0.00013698,2]
[384653436,1757502640569,-483.59412299,0.00013698,2]
[384653437,1757502640579,-480.0,0.00013698,2]
[384653438,1757502640588,-484.12244598,0.00013698,2]
[384653439,1757502640598,-480.0,0.00013698,2]
[384653440,1757502640607,-480.0,0.00013698,2]
[384653441,1757502640617,-480.0,0.00013698,2]
[384653442,1757502640626,-480.0,0.00013698,2]
[384653443,1757502640636,-480.0,0.00013698,2]
[384653444,1757502640645,-480.0,0.00013698,2]
[384653445,1757502640654,-480.0,0.00013698,2]
[384653446,1757502640663,-480.0,0.00013698,2]
[384653447,1757502640673,-480.0,0.00013698,2]
[384653448,1757502640683,-480.0,0.00013698,2]